[Event "Titled Tuesday Blitz September 27 Early 2022"]
[White "Garv Gaur"]
[Black "Mirzoev, Azer"]
[WhiteFideId "45030839"]
[BlackFideId "13400304"]
[WhiteElo "1950"]
[BlackElo "2525"]
[Result "0-1"]
[Round "09"]
[TimeControl "180+1"]
[Date "2022.09.27"]
[WhiteClock "0:00:03"]
[BlackClock "0:00:12"]

1. d4 {[%clk 0:02:59]}  d5 {[%clk 0:02:58]} 2. Nf3 {[%clk 0:02:59]}  Bf5 {[%clk 0:02:57]} 3. c4 {[%clk 0:02:59]}  e6 {[%clk 0:02:57]} 4. g3 {[%clk 0:02:57]}  c6 {[%clk 0:02:57]} 5. Nc3 {[%clk 0:02:56]}  Nd7 {[%clk 0:02:57]} 6. Nh4 {[%clk 0:02:53]}  Bg4 {[%clk 0:02:54]} 7. Bg2 {[%clk 0:02:48]}  Be7 {[%clk 0:02:52]} 8. Nf3 {[%clk 0:02:46]}  Ngf6 {[%clk 0:02:52]} 9. O-O {[%clk 0:02:45]}  O-O {[%clk 0:02:52]} 10. Nd2 {[%clk 0:02:42]}  Nb6 {[%clk 0:02:46]} 11. c5 {[%clk 0:02:37]}  Nbd7 {[%clk 0:02:45]} 12. b4 {[%clk 0:02:35]}  e5 {[%clk 0:02:43]} 13. Nb3 {[%clk 0:02:35]}  exd4 {[%clk 0:02:41]} 14. Qxd4 {[%clk 0:02:32]}  Re8 {[%clk 0:02:35]} 15. Bf4 {[%clk 0:02:31]}  Bh5 {[%clk 0:02:30]} 16. Rfe1 {[%clk 0:02:28]}  Nf8 {[%clk 0:02:29]} 17. Na5 {[%clk 0:02:22]}  Ne6 {[%clk 0:02:27]} 18. Qd2 {[%clk 0:02:21]}  Nxf4 {[%clk 0:02:19]} 19. Qxf4 {[%clk 0:02:22]}  Qb8 {[%clk 0:02:17]} 20. Qd2 {[%clk 0:02:16]}  Bg6 {[%clk 0:02:14]} 21. Rad1 {[%clk 0:02:13]}  a6 {[%clk 0:02:10]} 22. Na4 {[%clk 0:02:12]}  Qc7 {[%clk 0:02:08]} 23. Nb6 {[%clk 0:02:03]}  Rad8 {[%clk 0:02:09]} 24. Qf4 {[%clk 0:02:03]}  Qxf4 {[%clk 0:02:06]} 25. gxf4 {[%clk 0:02:04]}  Rb8 {[%clk 0:02:07]} 26. e3 {[%clk 0:02:01]}  Bd8 {[%clk 0:02:05]} 27. Nb3 {[%clk 0:01:47]}  Bc7 {[%clk 0:02:02]} 28. Nd4 {[%clk 0:01:45]}  h6 {[%clk 0:01:53]} 29. a4 {[%clk 0:01:42]}  Ne4 {[%clk 0:01:49]} 30. Rc1 {[%clk 0:01:27]}  Bh5 {[%clk 0:01:10]} 31. b5 {[%clk 0:01:23]}  axb5 {[%clk 0:01:10]} 32. axb5 {[%clk 0:01:23]}  Bxb6 {[%clk 0:00:56]} 33. cxb6 {[%clk 0:01:23]}  cxb5 {[%clk 0:00:56]} 34. Nxb5 {[%clk 0:01:21]}  Re6 {[%clk 0:00:56]} 35. Nc7 {[%clk 0:01:19]}  Rd6 {[%clk 0:00:44]} 36. Nxd5 {[%clk 0:01:17]}  Rxd5 {[%clk 0:00:44]} 37. Bxe4 {[%clk 0:01:17]}  Rd6 {[%clk 0:00:45]} 38. Rb1 {[%clk 0:01:03]}  Re6 {[%clk 0:00:44]} 39. Bd5 {[%clk 0:01:00]}  Rd6 {[%clk 0:00:43]} 40. e4 {[%clk 0:01:00]}  Bg6 {[%clk 0:00:41]} 41. Rec1 {[%clk 0:00:57]}  Rxd5 {[%clk 0:00:39]} 42. exd5 {[%clk 0:00:58]}  Bxb1 {[%clk 0:00:39]} 43. Rxb1 {[%clk 0:00:55]}  Rd8 {[%clk 0:00:39]} 44. Re1 {[%clk 0:00:45]}  Kf8 {[%clk 0:00:36]} 45. Rc1 {[%clk 0:00:45]}  Rxd5 {[%clk 0:00:31]} 46. Rc8+ {[%clk 0:00:44]}  Ke7 {[%clk 0:00:31]} 47. Kg2 {[%clk 0:00:37]}  Rd6 {[%clk 0:00:29]} 48. Rc7+ {[%clk 0:00:36]}  Rd7 {[%clk 0:00:29]} 49. Rc2 {[%clk 0:00:33]}  Ke6 {[%clk 0:00:26]} 50. Kf3 {[%clk 0:00:26]}  Rd6 {[%clk 0:00:26]} 51. f5+ {[%clk 0:00:19]}  Kf6 {[%clk 0:00:26]} 52. Rb2 {[%clk 0:00:15]}  Kxf5 {[%clk 0:00:26]} 53. Rb5+ {[%clk 0:00:15]}  Kf6 {[%clk 0:00:26]} 54. Ke4 {[%clk 0:00:14]}  Re6+ {[%clk 0:00:26]} 55. Kf4 {[%clk 0:00:14]}  g5+ {[%clk 0:00:25]} 56. Kg4 {[%clk 0:00:14]}  Re4+ {[%clk 0:00:25]} 57. Kf3 {[%clk 0:00:14]}  Rf4+ {[%clk 0:00:25]} 58. Kg3 {[%clk 0:00:14]}  Kg6 {[%clk 0:00:25]} 59. f3 {[%clk 0:00:10]}  Rd4 {[%clk 0:00:23]} 60. Rb3 {[%clk 0:00:07]}  f6 {[%clk 0:00:18]} 61. Rb5 {[%clk 0:00:07]}  h5 {[%clk 0:00:18]} 62. Rb3 {[%clk 0:00:06]}  h4+ {[%clk 0:00:17]} 63. Kh3 {[%clk 0:00:06]}  Rd2 {[%clk 0:00:16]} 64. Rb5 {[%clk 0:00:06]}  Rf2 {[%clk 0:00:15]} 65. Kg4 {[%clk 0:00:02]}  Rxh2 {[%clk 0:00:14]} 66. f4 {[%clk 0:00:03]}  Rg2+ {[%clk 0:00:14]} 67. Kf3 {[%clk 0:00:03]}  Rg3+ {[%clk 0:00:14]} 68. Ke4 {[%clk 0:00:04]}  g4 {[%clk 0:00:14]} 69. f5+ {[%clk 0:00:02]}  Kg5 {[%clk 0:00:14]} 70. Rc5 {[%clk 0:00:02]}  Rb3 {[%clk 0:00:14]} 71. Rc7 {[%clk 0:00:03]}  Rb4+ {[%clk 0:00:14]} 72. Kd5 {[%clk 0:00:02]}  Rxb6 {[%clk 0:00:14]} 73. Rh7 {[%clk 0:00:03]}  h3 {[%clk 0:00:14]} 74. Ke4 {[%clk 0:00:02]}  Rb4+ {[%clk 0:00:13]} 75. Ke3 {[%clk 0:00:02]}  Kxf5 {[%clk 0:00:13]} 76. Kf2 {[%clk 0:00:03]}  Rb3 {[%clk 0:00:13]} 77. Rh5+ {[%clk 0:00:02]}  Kf4 {[%clk 0:00:13]} 78. Ra5 {[%clk 0:00:03]}  f5 {[%clk 0:00:12]} 79. Ra4+ {[%clk 0:00:02]}  Kg5 {[%clk 0:00:12]} 80. Ra5 {[%clk 0:00:03]}  Rb2+ {[%clk 0:00:12]} 81. Kg3 {[%clk 0:00:03]}  Rg2# {[%clk 0:00:12]} 0-1


[Site "https://www.chess.com"]

[Event "Titled Tuesday Blitz September 27 Early 2022"]
[White "Goncalves, Davi Sulzbacher"]
[Black "Matveeva, Olga"]
[WhiteFideId "2154510"]
[BlackFideId "24107018"]
[WhiteElo "2107"]
[BlackElo "2056"]
[Result "1-0"]
[Round "09"]
[TimeControl "180+1"]
[Date "2022.09.27"]
[WhiteClock "0:02:48"]
[BlackClock "0:02:08"]

1. b3 {[%clk 0:03:00]}  Nf6 {[%clk 0:02:59]} 2. Bb2 {[%clk 0:03:01]}  d5 {[%clk 0:02:59]} 3. d4 {[%clk 0:03:00]}  e6 {[%clk 0:02:59]} 4. Nd2 {[%clk 0:03:00]}  c5 {[%clk 0:02:58]} 5. e3 {[%clk 0:03:00]}  Nc6 {[%clk 0:02:57]} 6. Ngf3 {[%clk 0:03:00]}  a6 {[%clk 0:02:53]} 7. c3 {[%clk 0:02:59]}  cxd4 {[%clk 0:02:42]} 8. cxd4 {[%clk 0:02:57]}  Be7 {[%clk 0:02:38]} 9. Bd3 {[%clk 0:02:57]}  O-O {[%clk 0:02:37]} 10. O-O {[%clk 0:02:58]}  b5 {[%clk 0:02:35]} 11. a4 {[%clk 0:02:56]}  bxa4 {[%clk 0:02:21]} 12. Rxa4 {[%clk 0:02:54]}  Qb6 {[%clk 0:02:17]} 13. Qa1 {[%clk 0:02:50]}  Bd7 {[%clk 0:02:16]} 14. Rxa6 {[%clk 0:02:48]}  Rxa6 {[%clk 0:02:11]} 15. Qxa6 {[%clk 0:02:49]}  Qxb3 {[%clk 0:02:08]} 16. Nxb3 {[%clk 0:02:48]} 1-0


[Site "https://www.chess.com"]

[Event "Titled Tuesday Blitz September 27 Early 2022"]
[White "Hardaway, Brewington"]
[Black "Kosakowski, Jakub"]
[WhiteFideId "30941849"]
[BlackFideId "1185080"]
[WhiteElo "1813"]
[BlackElo "2453"]
[Result "0-1"]
[Round "09"]
[TimeControl "180+1"]
[Date "2022.09.27"]
[WhiteClock "0:01:27"]
[BlackClock "0:01:32"]

1. c4 {[%clk 0:03:00]}  c5 {[%clk 0:02:55]} 2. Nf3 {[%clk 0:03:00]}  Nc6 {[%clk 0:02:54]} 3. b3 {[%clk 0:02:59]}  e5 {[%clk 0:02:53]} 4. Nc3 {[%clk 0:02:57]}  Nf6 {[%clk 0:02:52]} 5. d3 {[%clk 0:02:58]}  d5 {[%clk 0:02:52]} 6. cxd5 {[%clk 0:02:57]}  Nxd5 {[%clk 0:02:52]} 7. Bb2 {[%clk 0:02:57]}  f6 {[%clk 0:02:51]} 8. g4 {[%clk 0:02:57]}  Bxg4 {[%clk 0:02:46]} 9. Bg2 {[%clk 0:02:57]}  Nf4 {[%clk 0:02:45]} 10. Bf1 {[%clk 0:02:53]}  Bxf3 {[%clk 0:02:45]} 11. exf3 {[%clk 0:02:52]}  Be7 {[%clk 0:02:42]} 12. Qd2 {[%clk 0:02:46]}  Nd4 {[%clk 0:02:40]} 13. O-O-O {[%clk 0:02:44]}  O-O {[%clk 0:02:27]} 14. Qe3 {[%clk 0:02:36]}  b5 {[%clk 0:02:24]} 15. Rg1 {[%clk 0:02:34]}  a5 {[%clk 0:02:24]} 16. h4 {[%clk 0:02:20]}  a4 {[%clk 0:02:23]} 17. bxa4 {[%clk 0:02:20]}  b4 {[%clk 0:02:22]} 18. Ne4 {[%clk 0:02:16]}  Rxa4 {[%clk 0:02:20]} 19. h5 {[%clk 0:02:15]}  Rxa2 {[%clk 0:02:17]} 20. h6 {[%clk 0:02:03]}  g6 {[%clk 0:02:17]} 21. Nd2 {[%clk 0:02:01]}  Qd5 {[%clk 0:02:02]} 22. Nc4 {[%clk 0:01:59]}  Rfa8 {[%clk 0:02:02]} 23. Rg3 {[%clk 0:01:45]}  Qd7 {[%clk 0:01:44]} 24. Rd2 {[%clk 0:01:27]}  Qa4 {[%clk 0:01:32]} 0-1


[Site "https://www.chess.com"]

[Event "Titled Tuesday Blitz September 27 Early 2022"]
[White "Heinemann, Josefine"]
[Black "Malyi, Viacheslav"]
[WhiteFideId "12900460"]
[BlackFideId "14123983"]
[WhiteElo "2300"]
[BlackElo "2190"]
[Result "1/2-1/2"]
[Round "09"]
[TimeControl "180+1"]
[Date "2022.09.27"]
[WhiteClock "0:00:33"]
[BlackClock "0:00:31"]

1. Nf3 {[%clk 0:03:00]}  Nf6 {[%clk 0:02:53]} 2. c4 {[%clk 0:02:58]}  c5 {[%clk 0:02:53]} 3. g3 {[%clk 0:02:57]}  g6 {[%clk 0:02:53]} 4. Bg2 {[%clk 0:02:57]}  Bg7 {[%clk 0:02:53]} 5. Nc3 {[%clk 0:02:56]}  O-O {[%clk 0:02:54]} 6. O-O {[%clk 0:02:56]}  Nc6 {[%clk 0:02:55]} 7. Rb1 {[%clk 0:02:45]}  d5 {[%clk 0:02:54]} 8. cxd5 {[%clk 0:02:45]}  Nxd5 {[%clk 0:02:55]} 9. Nxd5 {[%clk 0:02:45]}  Qxd5 {[%clk 0:02:55]} 10. a3 {[%clk 0:02:43]}  a5 {[%clk 0:02:52]} 11. d3 {[%clk 0:02:43]}  b6 {[%clk 0:02:50]} 12. Be3 {[%clk 0:02:31]}  Bb7 {[%clk 0:02:46]} 13. Nd2 {[%clk 0:02:11]}  Qd7 {[%clk 0:02:15]} 14. Nc4 {[%clk 0:02:09]}  Qc7 {[%clk 0:02:11]} 15. Qa4 {[%clk 0:01:45]}  Nd4 {[%clk 0:02:01]} 16. Bxd4 {[%clk 0:01:42]}  Bxd4 {[%clk 0:01:49]} 17. Bxb7 {[%clk 0:01:38]}  Qxb7 {[%clk 0:01:50]} 18. Qb5 {[%clk 0:01:38]}  Rab8 {[%clk 0:01:46]} 19. b4 {[%clk 0:01:38]}  cxb4 {[%clk 0:01:37]} 20. axb4 {[%clk 0:01:39]}  axb4 {[%clk 0:01:37]} 21. Rxb4 {[%clk 0:01:38]}  Bc5 {[%clk 0:01:38]} 22. Rb3 {[%clk 0:01:37]}  Qc8 {[%clk 0:01:27]} 23. e3 {[%clk 0:01:32]}  Rd8 {[%clk 0:01:12]} 24. d4 {[%clk 0:01:32]}  Bd6 {[%clk 0:01:13]} 25. Nxb6 {[%clk 0:01:24]}  Qh3 {[%clk 0:01:11]} 26. Rfb1 {[%clk 0:01:23]}  h5 {[%clk 0:01:04]} 27. Qf1 {[%clk 0:01:18]}  Qf5 {[%clk 0:01:01]} 28. Nc4 {[%clk 0:01:13]}  Rxb3 {[%clk 0:00:57]} 29. Rxb3 {[%clk 0:01:14]}  Bb8 {[%clk 0:00:57]} 30. Ne5 {[%clk 0:00:52]}  Bxe5 {[%clk 0:00:55]} 31. dxe5 {[%clk 0:00:53]}  Qxe5 {[%clk 0:00:54]} 32. Rd3 {[%clk 0:00:51]}  Rc8 {[%clk 0:00:52]} 33. h4 {[%clk 0:00:50]}  Qc5 {[%clk 0:00:51]} 34. Qd1 {[%clk 0:00:48]}  Qc1 {[%clk 0:00:43]} 35. Qxc1 {[%clk 0:00:44]}  Rxc1+ {[%clk 0:00:44]} 36. Kg2 {[%clk 0:00:45]}  Rc7 {[%clk 0:00:38]} 37. Rd8+ {[%clk 0:00:42]}  Kg7 {[%clk 0:00:38]} 38. Rd5 {[%clk 0:00:42]}  e6 {[%clk 0:00:38]} 39. Ra5 {[%clk 0:00:42]}  Rb7 {[%clk 0:00:38]} 40. Rc5 {[%clk 0:00:42]}  Rd7 {[%clk 0:00:38]} 41. Rb5 {[%clk 0:00:42]}  Rd2 {[%clk 0:00:38]} 42. Ra5 {[%clk 0:00:41]}  Rb2 {[%clk 0:00:38]} 43. Rc5 {[%clk 0:00:40]}  Ra2 {[%clk 0:00:38]} 44. Rb5 {[%clk 0:00:40]}  Kf6 {[%clk 0:00:38]} 45. Rc5 {[%clk 0:00:40]}  Ra7 {[%clk 0:00:38]} 46. Rb5 {[%clk 0:00:39]}  Rd7 {[%clk 0:00:39]} 47. Ra5 {[%clk 0:00:39]}  Rc7 {[%clk 0:00:37]} 48. Rb5 {[%clk 0:00:39]}  Rc1 {[%clk 0:00:37]} 49. Ra5 {[%clk 0:00:39]}  Rd1 {[%clk 0:00:37]} 50. Rb5 {[%clk 0:00:39]}  Rd8 {[%clk 0:00:38]} 51. Ra5 {[%clk 0:00:39]}  Rh8 {[%clk 0:00:38]} 52. Rb5 {[%clk 0:00:39]}  Rg8 {[%clk 0:00:38]} 53. Ra5 {[%clk 0:00:39]}  Rf8 {[%clk 0:00:39]} 54. Rb5 {[%clk 0:00:39]}  Ra8 {[%clk 0:00:39]} 55. Rc5 {[%clk 0:00:38]}  Ra4 {[%clk 0:00:39]} 56. Rb5 {[%clk 0:00:38]}  Ra3 {[%clk 0:00:40]} 57. Rc5 {[%clk 0:00:38]}  Rb3 {[%clk 0:00:40]} 58. Ra5 {[%clk 0:00:38]}  Rb7 {[%clk 0:00:40]} 59. Rc5 {[%clk 0:00:38]}  Ke7 {[%clk 0:00:40]} 60. Ra5 {[%clk 0:00:37]}  Kd6 {[%clk 0:00:39]} 61. Kf3 {[%clk 0:00:37]}  Rc7 {[%clk 0:00:38]} 62. Rb5 {[%clk 0:00:36]}  Kc6 {[%clk 0:00:36]} 63. Ra5 {[%clk 0:00:36]}  Kd6 {[%clk 0:00:37]} 64. Rb5 {[%clk 0:00:36]}  Ra7 {[%clk 0:00:34]} 65. Kg2 {[%clk 0:00:34]}  Kc6 {[%clk 0:00:33]} 66. Rb8 {[%clk 0:00:34]}  Kd6 {[%clk 0:00:32]} 67. Rb5 {[%clk 0:00:33]}  Rc7 {[%clk 0:00:31]} 68. Kf3 {[%clk 0:00:33]} 1/2-1/2


[Site "https://www.chess.com"]

[Event "Titled Tuesday Blitz September 27 Early 2022"]
[White "Ismayil, Malak"]
[Black "Lauridsen, Jesper Morch"]
[WhiteFideId "13412604"]
[BlackFideId "1401890"]
[WhiteElo "1879"]
[BlackElo "2258"]
[Result "0-1"]
[Round "09"]
[TimeControl "180+1"]
[Date "2022.09.27"]
[WhiteClock "0:00:34"]
[BlackClock "0:00:15"]

1. e4 {[%clk 0:03:00]}  c5 {[%clk 0:02:59]} 2. Nf3 {[%clk 0:02:57]}  e6 {[%clk 0:02:58]} 3. Nc3 {[%clk 0:02:55]}  Nc6 {[%clk 0:02:57]} 4. Be2 {[%clk 0:02:53]}  b6 {[%clk 0:02:56]} 5. O-O {[%clk 0:02:51]}  Bb7 {[%clk 0:02:55]} 6. d3 {[%clk 0:02:51]}  d6 {[%clk 0:02:54]} 7. Bf4 {[%clk 0:02:51]}  Nf6 {[%clk 0:02:51]} 8. Bg3 {[%clk 0:02:45]}  Be7 {[%clk 0:02:45]} 9. Re1 {[%clk 0:02:43]}  Nh5 {[%clk 0:02:44]} 10. d4 {[%clk 0:02:38]}  Nxg3 {[%clk 0:02:43]} 11. hxg3 {[%clk 0:02:38]}  cxd4 {[%clk 0:02:42]} 12. Nxd4 {[%clk 0:02:39]}  Nxd4 {[%clk 0:02:40]} 13. Qxd4 {[%clk 0:02:40]}  O-O {[%clk 0:02:38]} 14. Rad1 {[%clk 0:02:30]}  Bf6 {[%clk 0:02:31]} 15. Qxd6 {[%clk 0:02:25]}  Qxd6 {[%clk 0:02:31]} 16. Rxd6 {[%clk 0:02:25]}  Bxc3 {[%clk 0:02:27]} 17. bxc3 {[%clk 0:02:26]}  Bxe4 {[%clk 0:02:27]} 18. Bd3 {[%clk 0:02:24]}  Bxd3 {[%clk 0:02:23]} 19. cxd3 {[%clk 0:02:25]}  Rfd8 {[%clk 0:02:22]} 20. Rxd8+ {[%clk 0:02:23]}  Rxd8 {[%clk 0:02:21]} 21. d4 {[%clk 0:02:24]}  Rc8 {[%clk 0:02:14]} 22. Re3 {[%clk 0:02:20]}  Kf8 {[%clk 0:02:11]} 23. Kf1 {[%clk 0:02:19]}  Rc4 {[%clk 0:02:01]} 24. Ke1 {[%clk 0:02:17]}  Ra4 {[%clk 0:01:59]} 25. Re2 {[%clk 0:02:17]}  Ra3 {[%clk 0:01:51]} 26. Rc2 {[%clk 0:02:15]}  Ke7 {[%clk 0:01:50]} 27. Kd2 {[%clk 0:02:15]}  b5 {[%clk 0:01:45]} 28. Rb2 {[%clk 0:02:13]}  a6 {[%clk 0:01:44]} 29. f3 {[%clk 0:02:00]}  Kd6 {[%clk 0:01:43]} 30. Kd3 {[%clk 0:01:45]}  Kc6 {[%clk 0:01:40]} 31. g4 {[%clk 0:01:44]}  g5 {[%clk 0:01:33]} 32. g3 {[%clk 0:01:40]}  a5 {[%clk 0:01:31]} 33. Rh2 {[%clk 0:01:29]}  b4 {[%clk 0:01:29]} 34. Rxh7 {[%clk 0:01:27]}  Rxc3+ {[%clk 0:01:26]} 35. Ke4 {[%clk 0:01:27]}  f5+ {[%clk 0:01:21]} 36. gxf5 {[%clk 0:01:26]}  exf5+ {[%clk 0:01:21]} 37. Kxf5 {[%clk 0:01:26]}  Rxf3+ {[%clk 0:01:20]} 38. Kg4 {[%clk 0:01:26]}  Rf2 {[%clk 0:01:14]} 39. Kxg5 {[%clk 0:01:21]}  Rxa2 {[%clk 0:01:13]} 40. Rh8 {[%clk 0:01:09]}  Rd2 {[%clk 0:00:55]} 41. Rd8 {[%clk 0:00:53]}  b3 {[%clk 0:00:49]} 42. g4 {[%clk 0:00:49]}  b2 {[%clk 0:00:42]} 43. Rb8 {[%clk 0:00:48]}  a4 {[%clk 0:00:42]} 44. Kh6 {[%clk 0:00:41]}  a3 {[%clk 0:00:39]} 45. g5 {[%clk 0:00:41]}  Rxd4 {[%clk 0:00:33]} 46. g6 {[%clk 0:00:40]}  Rh4+ {[%clk 0:00:26]} 47. Kg5 {[%clk 0:00:39]}  Rh1 {[%clk 0:00:24]} 48. g7 {[%clk 0:00:39]}  b1=Q {[%clk 0:00:17]} 49. Rc8+ {[%clk 0:00:37]}  Kd7 {[%clk 0:00:15]} 50. g8=Q {[%clk 0:00:37]}  Rg1+ {[%clk 0:00:15]} 51. Kh6 {[%clk 0:00:35]}  Rxg8 {[%clk 0:00:15]} 52. Rxg8 {[%clk 0:00:36]}  Qh1+ {[%clk 0:00:15]} 53. Kg6 {[%clk 0:00:33]}  Qg2+ {[%clk 0:00:14]} 54. Kh7 {[%clk 0:00:33]}  Qxg8+ {[%clk 0:00:15]} 55. Kxg8 {[%clk 0:00:34]}  a2 {[%clk 0:00:15]} 56. Kf7 {[%clk 0:00:34]}  a1=Q {[%clk 0:00:15]} 0-1


[Site "https://www.chess.com"]

[Event "Titled Tuesday Blitz September 27 Early 2022"]
[White "Jaskolka, Tomasz"]
[Black "Bilych, Olexiy"]
[WhiteFideId "1170791"]
[BlackFideId "14156504"]
[WhiteElo "2073"]
[BlackElo "2157"]
[Result "0-1"]
[Round "09"]
[TimeControl "180+1"]
[Date "2022.09.27"]
[WhiteClock "0:00:14"]
[BlackClock "0:00:20"]

1. d4 {[%clk 0:03:00]}  Nf6 {[%clk 0:02:54]} 2. c4 {[%clk 0:03:00]}  g6 {[%clk 0:02:55]} 3. g3 {[%clk 0:02:59]}  Bg7 {[%clk 0:02:53]} 4. Bg2 {[%clk 0:02:59]}  O-O {[%clk 0:02:54]} 5. Nc3 {[%clk 0:02:57]}  d6 {[%clk 0:02:52]} 6. Nf3 {[%clk 0:02:54]}  Nc6 {[%clk 0:02:52]} 7. d5 {[%clk 0:02:44]}  Na5 {[%clk 0:02:50]} 8. b3 {[%clk 0:02:35]}  Ne4 {[%clk 0:02:26]} 9. Nxe4 {[%clk 0:02:33]}  Bxa1 {[%clk 0:02:27]} 10. Bh6 {[%clk 0:02:22]}  Bg7 {[%clk 0:02:19]} 11. Bxg7 {[%clk 0:02:19]}  Kxg7 {[%clk 0:02:20]} 12. h4 {[%clk 0:02:20]}  h5 {[%clk 0:02:11]} 13. Qd2 {[%clk 0:02:12]}  c5 {[%clk 0:02:10]} 14. Nfg5 {[%clk 0:02:07]}  f6 {[%clk 0:02:07]} 15. Nh3 {[%clk 0:02:04]}  Bxh3 {[%clk 0:01:47]} 16. Bxh3 {[%clk 0:02:02]}  b5 {[%clk 0:01:43]} 17. g4 {[%clk 0:01:55]}  bxc4 {[%clk 0:01:37]} 18. gxh5 {[%clk 0:01:55]}  Qb6 {[%clk 0:01:36]} 19. Rg1 {[%clk 0:01:51]}  Qb4 {[%clk 0:01:31]} 20. Rxg6+ {[%clk 0:01:51]}  Kf7 {[%clk 0:01:29]} 21. Nc3 {[%clk 0:00:59]}  Ke8 {[%clk 0:01:12]} 22. Rg7 {[%clk 0:00:45]}  cxb3 {[%clk 0:01:07]} 23. Qe3 {[%clk 0:00:43]}  Qb7 {[%clk 0:01:07]} 24. Ne4 {[%clk 0:00:37]}  Kd8 {[%clk 0:00:51]} 25. Nxc5 {[%clk 0:00:17]}  dxc5 {[%clk 0:00:35]} 26. d6 {[%clk 0:00:17]}  Nc6 {[%clk 0:00:28]} 27. axb3 {[%clk 0:00:11]}  Re8 {[%clk 0:00:21]} 28. Qe6 {[%clk 0:00:03]}  Nd4 {[%clk 0:00:13]} 29. dxe7+ {[%clk 0:00:03]}  Kc7 {[%clk 0:00:13]} 30. Qc4 {[%clk 0:00:03]}  Qb4+ {[%clk 0:00:12]} 31. Qxb4 {[%clk 0:00:03]}  cxb4 {[%clk 0:00:13]} 32. h6 {[%clk 0:00:04]}  Kd6 {[%clk 0:00:13]} 33. h7 {[%clk 0:00:05]}  Rh8 {[%clk 0:00:12]} 34. e3 {[%clk 0:00:04]}  Nc6 {[%clk 0:00:12]} 35. Bf5 {[%clk 0:00:03]}  Nxe7 {[%clk 0:00:12]} 36. Bd3 {[%clk 0:00:03]}  Raf8 {[%clk 0:00:10]} 37. h5 {[%clk 0:00:03]}  f5 {[%clk 0:00:10]} 38. h6 {[%clk 0:00:04]}  Ke6 {[%clk 0:00:10]} 39. Bc4+ {[%clk 0:00:04]}  Kf6 {[%clk 0:00:11]} 40. f4 {[%clk 0:00:04]}  Ng6 {[%clk 0:00:11]} 41. Kf2 {[%clk 0:00:04]}  Ne7 {[%clk 0:00:09]} 42. Kf3 {[%clk 0:00:04]}  a5 {[%clk 0:00:09]} 43. e4 {[%clk 0:00:04]}  fxe4+ {[%clk 0:00:09]} 44. Kxe4 {[%clk 0:00:05]}  Nf5 {[%clk 0:00:10]} 45. Rg8 {[%clk 0:00:04]}  Nxh6 {[%clk 0:00:09]} 46. Rxf8+ {[%clk 0:00:04]}  Rxf8 {[%clk 0:00:10]} 47. Kd4 {[%clk 0:00:03]}  Nf5+ {[%clk 0:00:09]} 48. Kc5 {[%clk 0:00:04]}  Rh8 {[%clk 0:00:09]} 49. Bg8 {[%clk 0:00:04]}  Ne7 {[%clk 0:00:10]} 50. Kb5 {[%clk 0:00:04]}  Nxg8 {[%clk 0:00:10]} 51. hxg8=Q {[%clk 0:00:04]}  Rxg8 {[%clk 0:00:11]} 52. Kxa5 {[%clk 0:00:04]}  Rb8 {[%clk 0:00:12]} 53. Ka6 {[%clk 0:00:05]}  Kf5 {[%clk 0:00:12]} 54. Ka7 {[%clk 0:00:06]}  Re8 {[%clk 0:00:12]} 55. Ka6 {[%clk 0:00:07]}  Kxf4 {[%clk 0:00:12]} 56. Ka5 {[%clk 0:00:08]}  Re4 {[%clk 0:00:13]} 57. Ka4 {[%clk 0:00:08]}  Ke3 {[%clk 0:00:14]} 58. Ka5 {[%clk 0:00:09]}  Kd3 {[%clk 0:00:15]} 59. Ka4 {[%clk 0:00:10]}  Kc3 {[%clk 0:00:15]} 60. Kb5 {[%clk 0:00:10]}  Kxb3 {[%clk 0:00:16]} 61. Ka5 {[%clk 0:00:10]}  Rc4 {[%clk 0:00:17]} 62. Kb5 {[%clk 0:00:11]}  Kc3 {[%clk 0:00:18]} 63. Ka4 {[%clk 0:00:12]}  b3+ {[%clk 0:00:19]} 64. Ka3 {[%clk 0:00:13]}  b2 {[%clk 0:00:19]} 65. Ka2 {[%clk 0:00:13]}  Ra4+ {[%clk 0:00:19]} 66. Kb1 {[%clk 0:00:14]}  Ra1# {[%clk 0:00:20]} 0-1


[Site "https://www.chess.com"]

[Event "Titled Tuesday Blitz September 27 Early 2022"]
[White "Khamdamova, Afruza"]
[Black "Martin Duque, Jesus"]
[WhiteFideId "14210444"]
[BlackFideId "2208954"]
[WhiteElo "1668"]
[BlackElo "2258"]
[Result "0-1"]
[Round "09"]
[TimeControl "180+1"]
[Date "2022.09.27"]
[WhiteClock "0:00:03"]
[BlackClock "0:00:31"]

1. e4 {[%clk 0:03:00]}  c5 {[%clk 0:02:57]} 2. Nf3 {[%clk 0:03:00]}  b6 {[%clk 0:02:58]} 3. d4 {[%clk 0:03:00]}  cxd4 {[%clk 0:02:59]} 4. Nxd4 {[%clk 0:03:00]}  Bb7 {[%clk 0:03:00]} 5. Nc3 {[%clk 0:03:00]}  a6 {[%clk 0:03:00]} 6. Be2 {[%clk 0:02:56]}  e6 {[%clk 0:03:01]} 7. O-O {[%clk 0:02:54]}  Qc7 {[%clk 0:03:00]} 8. Be3 {[%clk 0:02:54]}  Nf6 {[%clk 0:02:59]} 9. Qd3 {[%clk 0:02:47]}  Nc6 {[%clk 0:02:58]} 10. Nxc6 {[%clk 0:02:41]}  Bxc6 {[%clk 0:02:58]} 11. f4 {[%clk 0:02:39]}  Bb4 {[%clk 0:02:56]} 12. Bf3 {[%clk 0:02:35]}  O-O {[%clk 0:02:52]} 13. e5 {[%clk 0:02:35]}  Bxf3 {[%clk 0:02:50]} 14. Rxf3 {[%clk 0:02:34]}  Bxc3 {[%clk 0:02:49]} 15. Qxc3 {[%clk 0:02:31]}  Qxc3 {[%clk 0:02:49]} 16. bxc3 {[%clk 0:02:30]}  Ne4 {[%clk 0:02:47]} 17. Bxb6 {[%clk 0:02:29]}  Rfc8 {[%clk 0:02:47]} 18. Bd4 {[%clk 0:02:28]}  Rab8 {[%clk 0:02:33]} 19. Re3 {[%clk 0:02:22]}  d5 {[%clk 0:02:30]} 20. exd6 {[%clk 0:02:13]}  Nxd6 {[%clk 0:02:31]} 21. a4 {[%clk 0:02:10]}  Nc4 {[%clk 0:02:30]} 22. Rg3 {[%clk 0:02:09]}  g6 {[%clk 0:02:27]} 23. h4 {[%clk 0:01:50]}  h5 {[%clk 0:02:27]} 24. Rg5 {[%clk 0:01:50]}  Rb2 {[%clk 0:02:25]} 25. Rc1 {[%clk 0:01:50]}  Ra2 {[%clk 0:02:14]} 26. g4 {[%clk 0:01:49]}  hxg4 {[%clk 0:02:06]} 27. h5 {[%clk 0:01:49]}  Rxa4 {[%clk 0:02:00]} 28. hxg6 {[%clk 0:01:48]}  Ra5 {[%clk 0:01:46]} 29. Rxg4 {[%clk 0:01:42]}  Nd2 {[%clk 0:01:31]} 30. gxf7+ {[%clk 0:01:28]}  Kxf7 {[%clk 0:01:31]} 31. Rg7+ {[%clk 0:01:27]}  Kf8 {[%clk 0:01:30]} 32. Rh7 {[%clk 0:01:26]}  Rc4 {[%clk 0:01:16]} 33. Kf2 {[%clk 0:01:24]}  Ne4+ {[%clk 0:01:16]} 34. Ke3 {[%clk 0:01:23]}  Nd6 {[%clk 0:01:14]} 35. Rg1 {[%clk 0:01:19]}  Nf5+ {[%clk 0:01:13]} 36. Kd3 {[%clk 0:01:18]}  Rc6 {[%clk 0:01:06]} 37. Be5 {[%clk 0:01:07]}  Rd5+ {[%clk 0:01:06]} 38. Ke2 {[%clk 0:01:06]}  Rc4 {[%clk 0:01:03]} 39. Rg6 {[%clk 0:00:58]}  Re4+ {[%clk 0:00:57]} 40. Kf3 {[%clk 0:00:40]}  Re3+ {[%clk 0:00:56]} 41. Kf2 {[%clk 0:00:32]}  Rd2+ {[%clk 0:00:54]} 42. Kf1 {[%clk 0:00:31]}  Ng3+ {[%clk 0:00:48]} 43. Rxg3 {[%clk 0:00:31]}  Rxg3 {[%clk 0:00:49]} 44. Ra7 {[%clk 0:00:20]}  Rh3 {[%clk 0:00:43]} 45. Kg1 {[%clk 0:00:20]}  Rxc2 {[%clk 0:00:37]} 46. Rxa6 {[%clk 0:00:19]}  Rd3 {[%clk 0:00:37]} 47. Ra1 {[%clk 0:00:19]}  Kf7 {[%clk 0:00:35]} 48. Kf1 {[%clk 0:00:14]}  Kg6 {[%clk 0:00:35]} 49. Ke1 {[%clk 0:00:13]}  Kf5 {[%clk 0:00:35]} 50. Ra7 {[%clk 0:00:12]}  Rh3 {[%clk 0:00:32]} 51. Kd1 {[%clk 0:00:10]}  Rg2 {[%clk 0:00:31]} 52. Rf7+ {[%clk 0:00:03]}  Ke4 {[%clk 0:00:31]} 0-1


[Site "https://www.chess.com"]